bitfinex/quotes_SOLUSD_20241222
["timestamp","ask_amount","ask_price","bid_price","bid_amount"]
[1734827016839,1.03486108,181.25,181.1,31.26765808]
[1734827017141,20.0,181.17,181.07,31.26765808]
[1734827017438,1.03514182,181.16,181.07,31.26765808]
[1734827017609,20.0,181.17,181.07,31.26765808]
[1734827017811,1.03501452,181.16,181.05,31.26765808]
[1734827018115,20.0,181.17,181.07,31.26765808]
[1734827018317,6.5633,181.2,181.09,31.26765808]
[1734827018520,6.5633,181.2,181.12,31.26765808]
[1734827019045,6.5633,181.2,181.14,55.04454208]
[1734827019251,6.5633,181.2,181.15,23.776884]
[1734827019841,6.5633,181.2,181.14,23.776884]
[1734827020317,6.5633,181.2,181.11,31.26765808]
[1734827020736,6.5633,181.2,181.13,31.26765808]
[1734827021043,6.5633,181.2,181.11,31.26765808]
[1734827021736,6.5633,181.2,181.12,23.776884]
[1734827024319,1.0348242,181.19,181.09,31.26765808]
[1734827024651,6.5633,181.2,181.1,23.776884]
[1734827026844,20.0,181.17,181.07,31.26765808]
[1734827027226,20.0,181.17,181.09,31.26765808]
[1734827027540,20.0,181.17,181.07,31.26765808]
[1734827028240,20.0,181.17,181.08,23.776884]
[1734827029138,1.03506256,181.16,181.05,31.26765808]
[1734827029440,1.03506256,181.16,181.03,32.78875808]
[1734827029613,1.03506256,181.16,181.03,31.26765808]
[1734827030589,20.0,181.11,180.99,31.26765808]
[1734827030720,20.0,181.11,180.97,1.5443]
[1734827030721,2.761,181.09,180.97,31.26765808]
[1734827031056,2.761,181.09,180.94,22.101411]
[1734827031057,1.03571313,181.08,180.94,31.26765808]
[1734827031345,20.0,181.04,180.94,31.26765808]
[1734827031520,1.03587672,181.03,180.94,31.26765808]
[1734827032134,1.03587672,181.03,180.92,31.26765808]
[1734827032834,1.03593502,181.03,180.92,31.26765808]
[1734827033043,6.5079,181.07,180.97,31.26765808]
[1734827033341,6.5079,181.07,181.02,31.26765808]
[1734827033521,6.5079,181.07,181.03,23.776884]
[1734827033717,6.5079,181.07,181.02,23.776884]
[1734827034945,6.5079,181.07,181.0,23.776884]
[1734827036142,6.5079,181.07,180.98,23.776884]
[1734827036350,1.03567054,181.06,180.95,31.26765808]
[1734827036951,20.0,181.04,180.95,31.26765808]
[1734827038121,20.0,181.04,180.93,31.26765808]
[1734827038415,1.03580485,181.03,180.93,31.26765808]
[1734827039118,23.79770485,181.03,180.91,31.26765808]
[1734827040124,23.79770485,181.03,180.92,23.776884]
[1734827042842,1.0784,181.04,180.95,31.26765808]
[1734827043035,1.0784,181.04,180.96,23.776884]
[1734827043238,1.03593623,181.06,180.96,23.776884]
[1734827043763,9.2693,181.07,180.96,23.776884]
[1734827043951,6.5079,181.07,180.99,31.26765808]
[1734827044166,6.5079,181.07,181.01,23.776884]
[1734827044831,6.5079,181.07,181.01,55.04454208]
[1734827046260,6.5079,181.12,181.06,31.26765808]
[1734827046635,6.5079,181.12,181.07,23.776884]
[1734827046939,6.5079,181.12,181.04,31.26765808]
[1734827047352,6.5079,181.12,181.06,55.04454208]
[1734827047538,6.5079,181.12,181.06,23.776884]
[1734827048364,6.5079,181.12,181.02,51.26765808]
[1734827048573,6.5079,181.12,181.04,31.26765808]
[1734827048738,6.5079,181.12,181.05,23.776884]
[1734827049752,6.5079,181.12,181.05,55.04454208]
[1734827050250,6.5079,181.12,181.07,23.776884]
[1734827050667,6.2937,181.17,181.09,31.26765808]
[1734827050850,6.2937,181.17,181.1,23.776884]
[1734827051268,6.2937,181.17,181.1,55.04454208]
[1734827052151,6.2937,181.17,181.12,23.776884]
[1734827052458,6.2937,181.22,181.12,55.04454208]
[1734827052651,6.2937,181.22,181.15,23.776884]
[1734827052859,6.2937,181.22,181.16,31.26765808]
[1734827053274,6.2937,181.22,181.17,23.776884]
[1734827053759,6.2937,181.29,181.19,23.776884]
[1734827053952,7.32809562,181.29,181.16,31.26765808]
[1734827054153,6.2937,181.29,181.17,55.04454208]
[1734827054382,6.2937,181.29,181.18,31.26765808]
[1734827054884,20.0,181.26,181.17,23.776884]
[1734827055095,1.03461521,181.25,181.17,23.776884]
[1734827055265,20.0,181.26,181.17,23.776884]
[1734827055765,20.0,181.26,181.16,23.776884]
[1734827057078,20.0,181.26,181.16,55.04454208]
[1734827057262,1.03442103,181.25,181.16,31.26765808]
[1734827057459,20.0,181.26,181.17,55.04454208]
[1734827057779,6.2937,181.29,181.2,55.04454208]
[1734827057986,6.2937,181.29,181.23,31.26765808]
[1734827058278,6.2937,181.29,181.21,23.776884]
[1734827058279,6.2937,181.34,181.24,55.04454208]
[1734827059176,6.2937,181.34,181.25,0.12549]
[1734827059384,6.2937,181.34,181.25,31.39314808]
[1734827059758,6.2937,181.34,181.26,23.776884]
[1734827059955,7.32768082,181.34,181.22,31.26765808]
[1734827060283,6.2937,181.34,181.26,23.776884]
[1734827061281,1.03399226,181.33,181.23,31.26765808]
[1734827061485,1.03399226,181.33,181.21,31.26765808]
[1734827061688,1.03415255,181.31,181.2,31.26765808]
[1734827061855,1.03415255,181.31,181.19,1.6279]
[1734827061856,23.79185255,181.31,181.19,31.26765808]
[1734827062178,23.79185255,181.31,181.15,13.8]
[1734827062179,1.0784,181.3,181.15,31.26765808]
[1734827062354,20.0,181.26,181.14,31.26765808]
[1734827062553,1.03470439,181.25,181.13,31.26765808]
[1734827062989,1.03470439,181.25,181.12,31.26765808]
[1734827063179,20.0,181.26,181.15,31.26765808]
[1734827063381,1.03456966,181.25,181.14,31.26765808]
[1734827063552,1.03456966,181.25,181.13,31.26765808]
[1734827063760,6.2937,181.24,181.1,31.26765808]
[1734827063965,20.0,181.21,181.08,31.26765808]
[1734827064174,20.0,181.21,181.11,31.26765808]
[1734827064579,20.0,181.21,181.12,31.26765808]
[1734827065258,20.0,181.21,181.13,23.776884]
[1734827065485,20.0,181.21,181.12,23.776884]
[1734827065703,20.0,181.21,181.11,23.776884]
[1734827066376,20.0,181.21,181.06,31.26765808]
[1734827066377,1.03485319,181.2,181.06,31.26765808]
[1734827066576,20.0,181.21,181.1,31.26765808]
[1734827066892,6.2937,181.24,181.15,31.26765808]
[1734827067071,6.2937,181.24,181.17,31.26765808]
[1734827067280,6.2937,181.24,181.19,31.26765808]
[1734827067479,6.2937,181.29,181.2,31.26765808]
[1734827067790,6.2937,181.29,181.2,23.776884]
[1734827068584,6.2937,181.29,181.2,55.04454208]
[1734827068959,6.2937,181.29,181.2,23.776884]
[1734827071102,6.2937,181.29,181.19,23.776884]
[1734827071598,6.2937,181.29,181.2,31.26765808]
[1734827071795,6.2937,181.29,181.21,23.776884]
[1734827074883,7.32806983,181.29,181.18,31.26765808]
[1734827075387,2.7581,181.28,181.16,31.26765808]
[1734827075634,1.03456207,181.27,181.16,31.26765808]
[1734827076268,6.2937,181.29,181.2,31.26765808]
[1734827076473,6.2937,181.29,181.21,23.776884]
[1734827077508,7.32801574,181.29,181.19,23.776884]
[1734827077676,6.2937,181.29,181.19,23.776884]
[1734827077878,6.2937,181.29,181.2,31.26765808]
[1734827078185,6.2937,181.29,181.21,23.776884]
[1734827078884,7.32804672,181.29,181.21,23.776884]
[1734827079306,7.32804672,181.29,181.19,23.776884]
[1734827080298,10.08614672,181.29,181.16,31.26765808]
[1734827080505,9.0518,181.29,181.17,0.12549]
[1734827080703,9.0518,181.29,181.18,31.26765808]
[1734827080887,6.2937,181.29,181.22,31.26765808]
[1734827081092,0.7038361,181.32,181.25,31.26765808]
[1734827081294,0.7038361,181.32,181.26,31.26765808]
[1734827081596,0.7038361,181.32,181.29,55.04454208]
[1734827081796,0.7038361,181.32,181.31,55.17003208]
[1734827082197,0.7038361,181.32,181.31,55.04454208]
[1734827082577,0.7038361,181.32,181.23,13.7945]
[1734827082794,0.7038361,181.32,181.28,23.776884]
[1734827082984,0.7038361,181.32,181.21,1.5343]
[1734827082985,0.7038361,181.32,181.24,31.26765808]
[1734827083184,0.7038361,181.32,181.25,31.26765808]
[1734827083586,0.7038361,181.32,181.27,31.26765808]
[1734827083893,0.7038361,181.32,181.26,31.26765808]
[1734827084099,0.7038361,181.32,181.25,51.26765808]
[1734827084288,0.7038361,181.32,181.26,23.776884]
[1734827085485,0.7038361,181.32,181.23,31.26765808]
[1734827086682,0.7038361,181.32,181.25,31.26765808]
[1734827087093,0.7038361,181.32,181.24,31.26765808]
[1734827087282,0.7038361,181.32,181.25,23.776884]
[1734827087907,0.7038361,181.32,181.26,31.26765808]
[1734827088205,0.7038361,181.32,181.31,31.26765808]
[1734827088415,0.7038361,181.32,181.31,31.39314808]
[1734827088914,3.61e-05,181.32,181.31,55.17003208]
[1734827089120,3.61e-05,181.32,181.31,63.18113208]
[1734827089283,6.4525,181.46,181.41,23.776884]
[1734827089489,6.4525,181.46,181.41,55.04454208]
[1734827090197,0.7038361,181.5,181.44,55.04454208]
[1734827090402,0.7038361,181.5,181.46,23.776884]
[1734827090579,0.7038361,181.5,181.46,55.04454208]
[1734827090781,0.7038361,181.5,181.48,23.776884]
[1734827091212,0.7038361,181.5,181.48,55.04454208]
[1734827091389,0.7038361,181.5,181.49,55.17003208]
[1734827091590,0.7038361,181.5,181.49,55.04454208]
[1734827092177,0.7038361,181.5,181.49,55.17003208]
[1734827093016,0.7038361,181.5,181.49,55.04454208]
[1734827094096,0.7038361,181.5,181.49,55.17003208]
[1734827096183,3.61e-05,181.5,181.49,68.94483208]
[1734827097810,1.03223538,181.67,181.53,0.12549]
[1734827098152,7.1563361,181.68,181.61,23.776884]
[1734827098286,7.1563361,181.68,181.58,31.26765808]
[1734827098482,7.1563361,181.68,181.59,31.26765808]
[1734827098802,7.1563361,181.68,181.6,23.776884]
[1734827099384,1.03210545,181.67,181.56,31.26765808]
[1734827099588,1.03210545,181.67,181.57,31.26765808]
[1734827099810,1.03210545,181.67,181.58,23.776884]
[1734827100318,20.0,181.65,181.55,31.26765808]
[1734827100518,7.1563361,181.68,181.58,31.26765808]
[1734827100728,7.1563361,181.68,181.56,20.0]
[1734827100729,1.03218558,181.67,181.59,23.776884]
[1734827101016,7.1563361,181.68,181.58,23.776884]
[1734827101196,7.1563361,181.68,181.58,55.04454208]
[1734827101394,1.0321901,181.67,181.58,23.776884]
[1734827102024,7.1563361,181.68,181.58,23.776884]
[1734827102335,20.0,181.65,181.55,31.26765808]
[1734827102498,20.0,181.65,181.56,31.26765808]
[1734827102698,7.1563361,181.68,181.58,31.26765808]
[1734827102908,7.1563361,181.68,181.6,31.26765808]
[1734827103107,7.1563361,181.68,181.62,31.26765808]
[1734827103492,7.1563361,181.68,181.61,23.776884]
[1734827103711,1.03204458,181.67,181.58,31.26765808]
[1734827103905,1.03204458,181.67,181.57,31.26765808]
[1734827104621,20.0,181.65,181.56,31.26765808]
[1734827104822,20.0,181.65,181.54,31.26765808]
[1734827104823,1.03233793,181.64,181.54,31.26765808]
[1734827105004,1.03233793,181.64,181.53,31.26765808]
[1734827105204,1.03233793,181.64,181.5,31.26765808]
[1734827105432,6.4116,181.59,181.47,38.42399408]
[1734827105730,6.4116,181.59,181.5,31.26765808]
[1734827106130,1.03268677,181.58,181.48,31.26765808]
[1734827106296,1.03268677,181.58,181.39,28.51564]
[1734827106297,20.0,181.56,181.44,31.26765808]
[1734827106494,1.03303757,181.55,181.43,31.26765808]
[1734827107121,3.78703757,181.55,181.4,31.26765808]
[1734827107321,3.78703757,181.55,181.39,31.26765808]
[1734827107523,3.78703757,181.55,181.34,20.2598]
[1734827107524,20.0,181.51,181.41,31.26765808]
[1734827107726,20.0,181.56,181.47,31.26765808]
[1734827107893,1.03307935,181.58,181.47,31.26765808]
[1734827108227,1.03307935,181.58,181.48,31.26765808]
[1734827108603,1.03307935,181.58,181.47,31.26765808]
[1734827108808,1.03307935,181.58,181.48,55.04454208]
[1734827110015,1.03275953,181.57,181.48,55.04454208]
[1734827110222,1.03275953,181.57,181.46,31.26765808]
[1734827110525,1.0329384,181.58,181.48,31.26765808]
[1734827110728,6.4116,181.59,181.49,23.776884]
[1734827110907,1.03274345,181.58,181.49,23.776884]
[1734827111231,1.03274345,181.58,181.48,31.26765808]
[1734827111527,1.03274345,181.58,181.46,31.26765808]
[1734827111713,20.0,181.56,181.46,31.26765808]
[1734827112033,1.03296331,181.55,181.46,31.26765808]
[1734827112409,1.03296331,181.55,181.44,31.26765808]
[1734827112730,21.03307941,181.56,181.45,31.26765808]
[1734827113622,20.0,181.56,181.47,31.26765808]
[1734827113830,1.03289655,181.58,181.48,23.776884]
[1734827114836,1.03270937,181.58,181.48,23.776884]
[1734827115016,1.03270937,181.58,181.45,31.26765808]
[1734827115212,1.03270937,181.58,181.46,23.776884]
[1734827115407,3.78630937,181.58,181.45,31.26765808]
[1734827116219,20.0,181.56,181.47,31.26765808]
[1734827116703,6.4116,181.59,181.49,31.26765808]
[1734827116923,6.4116,181.59,181.5,23.776884]
[1734827117110,6.4116,181.59,181.51,31.26765808]
[1734827117331,1.0785,181.64,181.55,23.776884]
[1734827117637,7.6276,181.64,181.55,55.04454208]
[1734827117803,6.5491,181.64,181.56,31.26765808]
[1734827118009,6.5491,181.64,181.55,55.04454208]
[1734827118930,6.5491,181.64,181.56,31.26765808]
[1734827119127,6.5491,181.64,181.59,23.776884]
[1734827119321,6.5491,181.64,181.56,31.26765808]
[1734827119531,6.5491,181.64,181.54,55.04454208]
[1734827120005,6.5491,181.64,181.55,31.26765808]
[1734827120308,6.5491,181.64,181.56,31.26765808]
[1734827120527,6.5491,181.64,181.56,23.776884]
[1734827121212,1.03233378,181.63,181.52,31.26765808]
[1734827121630,6.5491,181.64,181.52,31.26765808]
[1734827121803,6.5491,181.64,181.56,31.26765808]
[1734827122411,6.5491,181.64,181.58,23.776884]
[1734827122609,6.5491,181.64,181.59,31.26765808]
[1734827122803,6.5491,181.64,181.58,23.776884]
[1734827123036,6.5491,181.64,181.57,23.776884]
[1734827124124,1.03235406,181.63,181.54,31.26765808]
[1734827124441,6.5491,181.64,181.54,55.04454208]
[1734827124628,6.5491,181.64,181.58,31.26765808]
[1734827124835,6.5491,181.64,181.59,23.776884]
[1734827125225,6.5491,181.64,181.59,55.04454208]
[1734827125417,0.7038361,181.68,181.6,31.26765808]
[1734827125635,1.03216318,181.67,181.58,55.04454208]
[1734827126520,0.7038361,181.68,181.58,55.04454208]
[1734827126521,1.73604391,181.68,181.6,31.26765808]
[1734827126734,1.73604391,181.68,181.58,55.04454208]
[1734827126932,0.7038361,181.68,181.58,55.04454208]
[1734827127640,1.7359636,181.68,181.58,23.776884]
[1734827127947,0.7038361,181.68,181.58,55.04454208]
[1734827128119,1.7359481,181.68,181.58,55.04454208]
[1734827128320,0.7038361,181.68,181.58,55.04454208]
[1734827129055,1.73606715,181.68,181.58,23.776884]
[1734827129341,0.7038361,181.68,181.6,23.776884]
[1734827129542,0.7038361,181.68,181.62,31.26765808]
[1734827129728,0.7038361,181.68,181.63,31.26765808]
[1734827130114,0.7038361,181.68,181.62,31.26765808]
[1734827130314,0.7038361,181.68,181.63,23.776884]
[1734827131349,0.7038361,181.68,181.58,13.7674]
[1734827131350,0.7038361,181.68,181.61,20.0]
[1734827131639,0.7038361,181.68,181.6,31.26765808]
[1734827131829,1.73592065,181.68,181.58,31.26765808]
[1734827133032,0.7038361,181.68,181.6,31.26765808]
[1734827133434,1.03208636,181.67,181.58,31.26765808]
[1734827133820,0.7038361,181.68,181.6,31.26765808]
[1734827134643,0.7038361,181.68,181.61,23.776884]
[1734827134838,0.7038361,181.68,181.63,23.776884]
[1734827136537,0.7038361,181.68,181.64,31.26765808]
[1734827136860,0.7038361,181.68,181.65,23.776884]
[1734827137018,0.7038361,181.68,181.65,55.04454208]
[1734827137218,0.7038361,181.68,181.65,31.26765808]
[1734827137439,0.7038361,181.68,181.64,31.26765808]
[1734827137849,0.7038361,181.68,181.65,31.26765808]
[1734827138024,0.7038361,181.68,181.64,31.26765808]
[1734827138218,0.7038361,181.68,181.63,23.776884]
[1734827138424,0.7038361,181.68,181.67,31.26765808]
[1734827138738,6.2239,181.79,181.68,23.902374]
[1734827139040,6.2239,181.79,181.75,31.26765808]
[1734827139238,6.2239,181.84,181.75,31.26765808]
[1734827139625,1.03126988,181.83,181.73,31.26765808]
[1734827140654,6.2239,181.84,181.74,31.26765808]
[1734827140955,6.2239,181.84,181.76,55.04454208]
[1734827141534,6.2239,181.84,181.8,31.26765808]
[1734827141738,0.7038361,181.86,181.8,31.26765808]
[1734827143434,0.7038361,181.86,181.78,55.04454208]
[1734827143645,0.7038361,181.86,181.76,55.04454208]
[1734827144055,0.7038361,181.86,181.75,31.26765808]
[1734827144362,0.7038361,181.86,181.76,31.26765808]
[1734827145930,0.7038361,181.86,181.77,31.26765808]
[1734827146451,0.7038361,181.86,181.79,31.26765808]
[1734827147365,0.7038361,181.86,181.78,31.26765808]
[1734827147735,0.7038361,181.86,181.79,23.776884]
[1734827148160,0.7038361,181.86,181.79,55.04454208]
[1734827148744,0.7038361,181.86,181.8,31.26765808]
[1734827149349,0.7038361,181.86,181.79,55.04454208]
[1734827149863,0.7038361,181.86,181.75,31.26765808]
[1734827150031,23.78042082,181.85,181.73,2.21862094]
[1734827150365,21.03092082,181.85,181.73,33.48627902]
[1734827150532,21.03092082,181.85,181.75,31.26765808]
[1734827150737,0.7038361,181.86,181.77,31.26765808]
[1734827151430,0.7038361,181.86,181.76,31.26765808]
[1734827151634,0.7038361,181.86,181.77,31.26765808]
[1734827153645,0.7038361,181.86,181.78,31.26765808]
[1734827153836,0.7038361,181.86,181.77,31.26765808]
[1734827154036,1.73496508,181.86,181.76,31.26765808]
[1734827154236,0.7038361,181.86,181.77,31.26765808]
[1734827155643,0.7038361,181.86,181.78,31.26765808]
[1734827155841,0.7038361,181.86,181.8,31.26765808]
[1734827156861,0.7038361,181.86,181.81,31.26765808]
[1734827157072,0.7038361,181.86,181.8,31.26765808]
[1734827157368,0.7038361,181.86,181.77,31.26765808]
[1734827157674,0.7038361,181.86,181.78,31.26765808]
[1734827158462,0.7038361,181.86,181.77,31.26765808]
[1734827158756,0.7038361,181.86,181.78,31.26765808]
[1734827159442,0.7038361,181.86,181.79,31.26765808]
[1734827159661,0.7038361,181.86,181.78,31.26765808]
[1734827160367,0.7038361,181.86,181.79,31.26765808]
[1734827160745,0.7038361,181.86,181.8,31.26765808]
[1734827160973,0.7038361,181.86,181.79,31.26765808]
[1734827161174,21.03107278,181.85,181.74,31.26765808]
[1734827161376,21.03107278,181.85,181.73,31.26765808]
[1734827161543,21.03107278,181.85,181.72,31.26765808]
[1734827161743,23.78057278,181.85,181.72,31.26765808]
[1734827161968,21.03107278,181.85,181.74,31.26765808]
[1734827162159,1.73510763,181.86,181.76,31.26765808]
[1734827162358,0.7038361,181.86,181.78,31.26765808]
[1734827162676,0.7038361,181.86,181.79,31.26765808]
[1734827162976,0.7038361,181.86,181.77,31.26765808]
[1734827163457,21.0310684,181.85,181.75,31.26765808]
[1734827163775,21.0310684,181.85,181.72,31.26765808]
[1734827163776,23.7805684,181.85,181.72,31.26765808]
[1734827163982,20.0,181.81,181.7,31.26765808]
[1734827164185,1.03157266,181.8,181.69,31.26765808]
[1734827164547,1.03157266,181.8,181.67,31.26765808]
[1734827164854,1.0785,181.79,181.67,31.26765808]
[1734827165175,1.03170178,181.78,181.67,31.26765808]
[1734827165352,20.0,181.74,181.65,31.26765808]
[1734827165550,1.03189619,181.73,181.62,31.26765808]
[1734827165754,1.03189619,181.73,181.61,31.26765808]
[1734827165960,1.03189619,181.73,181.62,31.26765808]
[1734827166280,1.03189619,181.73,181.61,31.26765808]
[1734827167074,1.03189619,181.73,181.6,31.26765808]
[1734827167383,6.1846,181.67,181.53,31.26765808]
[1734827167557,20.0,181.64,181.51,31.26765808]
[1734827167873,1.03254128,181.63,181.51,31.26765808]
[1734827168188,1.03254128,181.63,181.46,13.7764]
[1734827168189,1.03254128,181.63,181.52,31.26765808]
[1734827168770,1.03254128,181.63,181.51,31.26765808]
[1734827168969,1.03254128,181.63,181.52,31.26765808]
[1734827169277,1.03254128,181.63,181.53,31.26765808]
[1734827169884,1.03254128,181.63,181.54,31.26765808]
[1734827170375,1.03241699,181.63,181.54,31.26765808]
[1734827170578,6.1846,181.67,181.56,31.26765808]
[1734827170767,1.03227907,181.66,181.57,31.26765808]
[1734827170961,1.03227907,181.66,181.54,31.26765808]
[1734827171360,20.0,181.64,181.54,31.26765808]
[1734827171576,1.03259924,181.63,181.51,31.26765808]
[1734827171765,6.5878,181.62,181.45,1.6538]
[1734827172073,20.0,181.59,181.47,31.26765808]
[1734827172280,1.0785,181.57,181.45,31.26765808]
[1734827172493,1.0785,181.57,181.4,13.7811]
[1734827172494,20.0,181.52,181.4,31.26765808]
[1734827172660,20.0,181.52,181.37,31.26765808]
[1734827172661,1.03316742,181.51,181.37,31.26765808]
[1734827172862,6.5878,181.5,181.37,31.26765808]
[1734827173086,1.0785,181.46,181.33,31.26765808]
[1734827173304,20.0,181.41,181.31,8.60770235]
[1734827173473,1.03381628,181.4,181.29,31.26765808]
[1734827173788,1.03381628,181.4,181.27,31.26765808]
[1734827173974,3.79011628,181.4,181.25,31.26765808]
[1734827174368,23.776884,181.39,181.23,31.97149418]
[1734827174671,20.0,181.32,181.23,0.7038361]
[1734827174867,1.03446933,181.31,181.23,0.7038361]
[1734827175097,23.776884,181.3,181.23,0.7038361]
[1734827175274,1.03475379,181.29,181.15,31.26765808]
[1734827175590,20.0,181.25,181.11,31.26765808]
[1734827175770,1.03489127,181.24,181.11,31.26765808]
[1734827175968,1.03489127,181.24,181.17,31.26765808]
[1734827176291,1.03464824,181.31,181.17,31.26765808]
[1734827176864,1.03464824,181.31,181.15,31.26765808]
[1734827177094,20.0,181.27,181.15,31.26765808]
[1734827177279,1.03481259,181.26,181.15,31.26765808]
[1734827177760,1.03481259,181.26,181.13,31.26765808]
[1734827177961,23.776884,181.25,181.11,31.26765808]
[1734827178287,1.03491802,181.24,181.11,31.26765808]
[1734827179187,1.03491802,181.24,181.06,15.4071]
[1734827179188,1.03488712,181.23,181.14,23.776884]
[1734827179398,1.03488712,181.26,181.17,31.26765808]
[1734827179575,1.03488712,181.26,181.15,31.26765808]
[1734827179894,1.03488712,181.26,181.13,31.26765808]
[1734827180188,1.03488712,181.26,181.09,13.8046]
[1734827180189,1.03488712,181.26,181.15,31.26765808]
[1734827180380,1.03465518,181.25,181.13,31.26765808]
[1734827180734,23.776884,181.27,181.13,31.26765808]
[1734827180995,20.0,181.24,181.13,31.26765808]
[1734827181286,1.03481526,181.26,181.15,31.26765808]
[1734827181473,23.776884,181.3,181.15,31.26765808]
[1734827181668,20.0,181.25,181.15,31.26765808]
[1734827181875,1.03475363,181.24,181.13,31.26765808]
[1734827182393,1.03479899,181.27,181.17,31.26765808]
[1734827182574,6.5878,181.35,181.17,31.26765808]
[1734827182575,1.03461995,181.29,181.17,31.26765808]
[1734827182760,1.03454225,181.31,181.23,31.26765808]
[1734827183060,1.03426167,181.34,181.23,31.26765808]
[1734827183887,1.03426167,181.34,181.25,31.26765808]
[1734827184192,6.5878,181.35,181.27,31.26765808]
[1734827184358,6.5878,181.35,181.27,55.04454208]
[1734827184570,6.5878,181.35,181.3,31.26765808]
[1734827185195,6.5878,181.42,181.31,31.26765808]
[1734827185384,6.5878,181.42,181.33,31.26765808]
[1734827185592,1.03367005,181.41,181.32,31.26765808]
[1734827185772,6.5878,181.42,181.33,31.26765808]
[1734827185974,1.03364782,181.41,181.33,31.26765808]
[1734827186197,6.5878,181.42,181.33,31.26765808]
[1734827186589,6.5878,181.42,181.37,31.26765808]
[1734827186774,6.5878,181.49,181.37,31.26765808]
[1734827186976,1.03347683,181.48,181.36,31.26765808]
[1734827187311,1.03347683,181.48,181.33,31.26765808]
[1734827187507,1.03347683,181.48,181.3,31.26765808]
[1734827187804,20.0,181.44,181.29,31.26765808]
[1734827187969,20.0,181.44,181.31,31.26765808]
[1734827187970,1.03393602,181.43,181.31,31.26765808]
[1734827188398,1.03393602,181.43,181.3,31.26765808]
[1734827188594,1.03393602,181.43,181.29,31.26765808]
[1734827189302,1.03393602,181.43,181.28,31.26765808]
[1734827189672,2.756,181.42,181.28,31.26765808]
[1734827189879,23.776884,181.4,181.26,31.26765808]
[1734827190099,1.03415208,181.39,181.26,31.26765808]
[1734827190406,23.776884,181.38,181.24,31.26765808]
[1734827190589,20.0,181.35,181.22,31.26765808]
[1734827190779,1.03432828,181.34,181.22,31.26765808]
[1734827190975,6.0083,181.33,181.22,31.26765808]
[1734827191188,20.0,181.3,181.2,31.26765808]
[1734827191390,1.03453285,181.29,181.2,31.26765808]
[1734827192508,6.0083,181.33,181.24,31.26765808]
[1734827192715,6.0083,181.33,181.26,31.26765808]
[1734827193911,1.03406802,181.39,181.26,31.26765808]
[1734827194079,1.03406802,181.39,181.3,31.26765808]
[1734827194283,6.0083,181.4,181.31,55.04454208]
[1734827194483,6.0083,181.4,181.32,31.26765808]
[1734827194706,6.0083,181.4,181.33,31.26765808]
[1734827195682,6.0083,181.4,181.34,31.26765808]
[1734827196002,7.04195563,181.47,181.35,31.26765808]
[1734827196211,2.7554,181.46,181.32,31.26765808]
[1734827196415,1.03377109,181.45,181.32,31.26765808]
[1734827196617,1.03377109,181.45,181.29,31.26765808]
[1734827196785,1.03377109,181.45,181.28,31.26765808]
[1734827196985,1.03377109,181.45,181.21,13.7956]
[1734827196986,1.03377109,181.45,181.29,31.26765808]
[1734827197286,20.0,181.44,181.33,31.26765808]
[1734827197602,1.03362149,181.43,181.33,31.26765808]
[1734827198007,1.03362149,181.43,181.32,31.26765808]
[1734827198196,1.03362149,181.43,181.31,31.26765808]
[1734827198522,1.03362149,181.43,181.33,31.26765808]
[1734827199514,6.0083,181.47,181.37,31.26765808]
[1734827199717,1.03341973,181.46,181.37,31.26765808]
[1734827199901,6.0083,181.47,181.39,31.26765808]
[1734827201404,2.7544,181.53,181.34,23.776884]
[1734827201405,6.5144,181.54,181.41,31.26765808]
[1734827201578,1.03310931,181.53,181.41,31.26765808]
[1734827201786,1.03310931,181.53,181.38,31.26765808]
[1734827202089,1.03310931,181.53,181.38,23.776884]
[1734827202391,1.03310931,181.53,181.34,31.26765808]
[1734827202596,23.776884,181.5,181.34,31.26765808]
[1734827202919,20.0,181.47,181.35,31.26765808]
[1734827203250,1.03339993,181.53,181.38,31.26765808]
[1734827203382,1.03339993,181.53,181.3,0.12549]
[1734827203383,20.0,181.51,181.41,31.26765808]
[1734827203579,1.03309975,181.5,181.42,31.26765808]
[1734827203794,1.03322136,181.53,181.42,31.26765808]
[1734827204308,1.03322136,181.53,181.43,23.776884]
[1734827204518,1.03322136,181.53,181.43,55.04454208]
[1734827204816,20.0,181.51,181.42,31.26765808]
[1734827205121,20.0,181.51,181.43,23.776884]
[1734827205993,1.03301542,181.5,181.42,31.26765808]
[1734827206201,1.03301542,181.5,181.4,31.26765808]
[1734827206519,1.03301542,181.5,181.42,31.26765808]
[1734827206810,20.0,181.51,181.43,23.776884]
[1734827207631,1.03311801,181.5,181.37,31.26765808]
[1734827207825,1.03311801,181.5,181.33,13.7869]